[Event "Titled Tuesday Blitz May 17 Early 2022"]
[White "Seemann, Jakub"]
[Black "Deac, Bogdan-Daniel"]
[WhiteFideId "21874697"]
[BlackFideId "1226380"]
[WhiteElo "2003"]
[BlackElo "2648"]
[Result "0-1"]
[Round "11"]
[TimeControl "180+1"]
[Date "2022.05.17"]
[WhiteClock "0:00:02"]
[BlackClock "0:00:12"]

1. e4 {[%clk 0:03:00]}  c5 {[%clk 0:03:00]} 2. Nf3 {[%clk 0:02:58]}  Nc6 {[%clk 0:03:00]} 3. Bb5 {[%clk 0:02:57]}  e6 {[%clk 0:02:58]} 4. O-O {[%clk 0:02:56]}  Nge7 {[%clk 0:02:57]} 5. Re1 {[%clk 0:02:56]}  a6 {[%clk 0:02:57]} 6. Bf1 {[%clk 0:02:55]}  b6 {[%clk 0:02:56]} 7. c3 {[%clk 0:02:55]}  d5 {[%clk 0:02:56]} 8. d4 {[%clk 0:02:56]}  dxe4 {[%clk 0:02:44]} 9. Rxe4 {[%clk 0:02:57]}  cxd4 {[%clk 0:02:44]} 10. cxd4 {[%clk 0:02:46]}  Bb7 {[%clk 0:02:33]} 11. Nc3 {[%clk 0:02:42]}  Nd5 {[%clk 0:02:32]} 12. Bg5 {[%clk 0:02:38]}  Be7 {[%clk 0:02:28]} 13. Bxe7 {[%clk 0:02:32]}  Ncxe7 {[%clk 0:02:25]} 14. Re1 {[%clk 0:02:27]}  O-O {[%clk 0:02:20]} 15. Ne5 {[%clk 0:02:26]}  Rc8 {[%clk 0:02:17]} 16. Rc1 {[%clk 0:02:23]}  Nf5 {[%clk 0:02:15]} 17. Qg4 {[%clk 0:02:17]}  Nf6 {[%clk 0:02:12]} 18. Qh3 {[%clk 0:01:59]}  Qxd4 {[%clk 0:02:06]} 19. Rcd1 {[%clk 0:01:57]}  Qb4 {[%clk 0:01:58]} 20. g4 {[%clk 0:01:46]}  Nd4 {[%clk 0:01:16]} 21. g5 {[%clk 0:01:35]}  Nd5 {[%clk 0:01:16]} 22. Nxd5 {[%clk 0:01:30]}  Bxd5 {[%clk 0:01:13]} 23. Bd3 {[%clk 0:01:20]}  g6 {[%clk 0:01:00]} 24. Re3 {[%clk 0:01:18]}  Qe7 {[%clk 0:00:27]} 25. Qh6 {[%clk 0:00:59]}  f6 {[%clk 0:00:27]} 26. Ng4 {[%clk 0:00:23]}  fxg5 {[%clk 0:00:21]} 27. Rh3 {[%clk 0:00:15]}  Nf3+ {[%clk 0:00:17]} 28. Kf1 {[%clk 0:00:14]}  Qg7 {[%clk 0:00:17]} 29. Rxf3 {[%clk 0:00:02]}  Bxf3 {[%clk 0:00:13]} 30. Qxg5 {[%clk 0:00:02]}  Bxd1 {[%clk 0:00:12]} 0-1


[Site "https://www.chess.com"]

[Event "Titled Tuesday Blitz May 17 Early 2022"]
[White "Tarigan, Gilbert Elroy"]
[Black "Chigaev, Maksim"]
[WhiteFideId "7108133"]
[BlackFideId "4108116"]
[WhiteElo "1908"]
[BlackElo "2457"]
[Result "1-0"]
[Round "11"]
[TimeControl "180+1"]
[Date "2022.05.17"]
[WhiteClock "0:01:28"]
[BlackClock "0:00:44"]

1. e4 {[%clk 0:02:58]}  e5 {[%clk 0:02:59]} 2. Nf3 {[%clk 0:02:58]}  Nc6 {[%clk 0:03:00]} 3. Bb5 {[%clk 0:02:58]}  a6 {[%clk 0:03:00]} 4. Ba4 {[%clk 0:02:58]}  Nge7 {[%clk 0:03:01]} 5. O-O {[%clk 0:02:53]}  Ng6 {[%clk 0:03:00]} 6. d4 {[%clk 0:02:45]}  b5 {[%clk 0:02:56]} 7. Bb3 {[%clk 0:02:43]}  Nxd4 {[%clk 0:02:56]} 8. Nxd4 {[%clk 0:02:41]}  exd4 {[%clk 0:02:57]} 9. c3 {[%clk 0:02:23]}  dxc3 {[%clk 0:02:52]} 10. Qd5 {[%clk 0:02:21]}  Qf6 {[%clk 0:01:49]} 11. Qxa8 {[%clk 0:02:14]}  Bd6 {[%clk 0:01:26]} 12. Nxc3 {[%clk 0:02:07]}  O-O {[%clk 0:01:25]} 13. Qd5 {[%clk 0:02:07]}  Be5 {[%clk 0:01:13]} 14. Qd2 {[%clk 0:01:51]}  Qh4 {[%clk 0:00:43]} 15. g3 {[%clk 0:01:46]}  Qh3 {[%clk 0:00:43]} 16. f4 {[%clk 0:01:40]}  Bd6 {[%clk 0:00:43]} 17. Qg2 {[%clk 0:01:35]}  Bc5+ {[%clk 0:00:43]} 18. Kh1 {[%clk 0:01:35]}  Qh5 {[%clk 0:00:44]} 19. Bd1 {[%clk 0:01:28]} 1-0


[Site "https://www.chess.com"]

[Event "Titled Tuesday Blitz May 17 Early 2022"]
[White "Timofeev, Artyom"]
[Black "Zavgorodniy, Sergiy"]
[WhiteFideId "4140419"]
[BlackFideId "14110148"]
[WhiteElo "2594"]
[BlackElo "2420"]
[Result "1/2-1/2"]
[Round "11"]
[TimeControl "180+1"]
[Date "2022.05.17"]
[WhiteClock "0:00:05"]
[BlackClock "0:00:07"]

1. e4 {[%clk 0:03:00]}  e5 {[%clk 0:02:22]} 2. Nc3 {[%clk 0:02:59]}  Nf6 {[%clk 0:02:20]} 3. Bc4 {[%clk 0:02:58]}  c6 {[%clk 0:02:16]} 4. d4 {[%clk 0:02:57]}  Bb4 {[%clk 0:02:06]} 5. dxe5 {[%clk 0:02:49]}  Nxe4 {[%clk 0:02:05]} 6. Qd4 {[%clk 0:02:28]}  d5 {[%clk 0:01:35]} 7. exd6 {[%clk 0:02:27]}  O-O {[%clk 0:01:31]} 8. Ne2 {[%clk 0:02:18]}  Nxc3 {[%clk 0:01:23]} 9. bxc3 {[%clk 0:02:16]}  Bxd6 {[%clk 0:01:22]} 10. O-O {[%clk 0:02:15]}  Qc7 {[%clk 0:01:20]} 11. Bf4 {[%clk 0:02:07]}  Bxf4 {[%clk 0:01:19]} 12. Nxf4 {[%clk 0:02:08]}  Nd7 {[%clk 0:01:15]} 13. Rfe1 {[%clk 0:02:05]}  Nf6 {[%clk 0:01:12]} 14. Bd3 {[%clk 0:01:32]}  Rd8 {[%clk 0:00:50]} 15. Qe3 {[%clk 0:01:32]}  Bd7 {[%clk 0:00:41]} 16. h3 {[%clk 0:01:30]}  Re8 {[%clk 0:00:41]} 17. Qf3 {[%clk 0:01:29]}  Rad8 {[%clk 0:00:38]} 18. a4 {[%clk 0:01:19]}  Qa5 {[%clk 0:00:38]} 19. Rxe8+ {[%clk 0:01:17]}  Rxe8 {[%clk 0:00:37]} 20. Rb1 {[%clk 0:01:07]}  Bc8 {[%clk 0:00:36]} 21. Rb4 {[%clk 0:00:58]}  c5 {[%clk 0:00:35]} 22. Rb5 {[%clk 0:00:47]}  Qxa4 {[%clk 0:00:33]} 23. Rxc5 {[%clk 0:00:47]}  a5 {[%clk 0:00:20]} 24. Kh2 {[%clk 0:00:43]}  Qa3 {[%clk 0:00:15]} 25. Rc4 {[%clk 0:00:32]}  Qd6 {[%clk 0:00:13]} 26. Qg3 {[%clk 0:00:30]}  Bd7 {[%clk 0:00:09]} 27. Rd4 {[%clk 0:00:23]}  Qe5 {[%clk 0:00:10]} 28. Ne2 {[%clk 0:00:19]}  Qxg3+ {[%clk 0:00:09]} 29. Kxg3 {[%clk 0:00:17]}  a4 {[%clk 0:00:09]} 30. Nc1 {[%clk 0:00:16]}  Bc6 {[%clk 0:00:07]} 31. Na2 {[%clk 0:00:16]}  g6 {[%clk 0:00:06]} 32. Nb4 {[%clk 0:00:15]}  Bd7 {[%clk 0:00:04]} 33. c4 {[%clk 0:00:13]}  Rc8 {[%clk 0:00:04]} 34. Rd6 {[%clk 0:00:13]}  Kg7 {[%clk 0:00:04]} 35. Rb6 {[%clk 0:00:12]}  Bc6 {[%clk 0:00:02]} 36. Nxc6 {[%clk 0:00:11]}  bxc6 {[%clk 0:00:03]} 37. Ra6 {[%clk 0:00:11]}  Nd7 {[%clk 0:00:03]} 38. Rxa4 {[%clk 0:00:11]}  Nc5 {[%clk 0:00:03]} 39. Ra5 {[%clk 0:00:11]}  Nxd3 {[%clk 0:00:03]} 40. cxd3 {[%clk 0:00:12]}  Rd8 {[%clk 0:00:04]} 41. Rc5 {[%clk 0:00:12]}  Rxd3+ {[%clk 0:00:03]} 42. Kf4 {[%clk 0:00:12]}  Rd6 {[%clk 0:00:04]} 43. Ke5 {[%clk 0:00:13]}  Re6+ {[%clk 0:00:05]} 44. Kd4 {[%clk 0:00:13]}  Kf6 {[%clk 0:00:05]} 45. f4 {[%clk 0:00:13]}  Ke7 {[%clk 0:00:05]} 46. Re5 {[%clk 0:00:13]}  Rxe5 {[%clk 0:00:04]} 47. Kxe5 {[%clk 0:00:13]}  f6+ {[%clk 0:00:05]} 48. Kd4 {[%clk 0:00:13]}  Kd6 {[%clk 0:00:05]} 49. g4 {[%clk 0:00:12]}  c5+ {[%clk 0:00:06]} 50. Ke4 {[%clk 0:00:12]}  Ke6 {[%clk 0:00:06]} 51. f5+ {[%clk 0:00:13]}  gxf5+ {[%clk 0:00:07]} 52. gxf5+ {[%clk 0:00:13]}  Kd6 {[%clk 0:00:07]} 53. Kf4 {[%clk 0:00:13]}  h6 {[%clk 0:00:07]} 54. Ke4 {[%clk 0:00:13]}  h5 {[%clk 0:00:07]} 55. Kf4 {[%clk 0:00:13]}  h4 {[%clk 0:00:07]} 56. Kg4 {[%clk 0:00:10]}  Ke5 {[%clk 0:00:07]} 57. Kxh4 {[%clk 0:00:10]}  Kxf5 {[%clk 0:00:07]} 58. Kg3 {[%clk 0:00:11]}  Ke4 {[%clk 0:00:08]} 59. h4 {[%clk 0:00:09]}  Ke3 {[%clk 0:00:08]} 60. Kg4 {[%clk 0:00:09]}  Ke4 {[%clk 0:00:08]} 61. Kg3 {[%clk 0:00:09]}  Ke3 {[%clk 0:00:09]} 62. h5 {[%clk 0:00:06]}  f5 {[%clk 0:00:08]} 63. h6 {[%clk 0:00:07]}  f4+ {[%clk 0:00:09]} 64. Kg4 {[%clk 0:00:07]}  f3 {[%clk 0:00:08]} 65. h7 {[%clk 0:00:08]}  f2 {[%clk 0:00:09]} 66. h8=Q {[%clk 0:00:08]}  f1=Q {[%clk 0:00:10]} 67. Qe5+ {[%clk 0:00:06]}  Kd3 {[%clk 0:00:10]} 68. Qxc5 {[%clk 0:00:05]}  Kc3 {[%clk 0:00:09]} 69. Qe5+ {[%clk 0:00:05]}  Kxc4 {[%clk 0:00:08]} 70. Qf4+ {[%clk 0:00:05]}  Qxf4+ {[%clk 0:00:07]} 71. Kxf4 {[%clk 0:00:05]} 1/2-1/2


[Site "https://www.chess.com"]

[Event "Titled Tuesday Blitz May 17 Early 2022"]
[White "Vokhidov, Shamsiddin"]
[Black "Sarana, Alexey"]
[WhiteFideId "14204223"]
[BlackFideId "24133795"]
[WhiteElo "2611"]
[BlackElo "2666"]
[Result "1-0"]
[Round "11"]
[TimeControl "180+1"]
[Date "2022.05.17"]
[WhiteClock "0:02:18"]
[BlackClock "0:02:27"]

1. e4 {[%clk 0:02:53]}  c5 {[%clk 0:03:00]} 2. Nf3 {[%clk 0:02:53]}  d6 {[%clk 0:03:01]} 3. Bb5+ {[%clk 0:02:51]}  Nd7 {[%clk 0:03:02]} 4. d4 {[%clk 0:02:42]}  cxd4 {[%clk 0:03:03]} 5. Qxd4 {[%clk 0:02:43]}  a6 {[%clk 0:03:03]} 6. Bxd7+ {[%clk 0:02:42]}  Bxd7 {[%clk 0:03:04]} 7. c4 {[%clk 0:02:42]}  e5 {[%clk 0:03:05]} 8. Qd3 {[%clk 0:02:42]}  b5 {[%clk 0:03:06]} 9. b3 {[%clk 0:02:42]}  Be7 {[%clk 0:03:04]} 10. O-O {[%clk 0:02:39]}  h6 {[%clk 0:03:05]} 11. Nc3 {[%clk 0:02:38]}  Qb6 {[%clk 0:03:05]} 12. Nd5 {[%clk 0:02:37]}  Qb7 {[%clk 0:03:04]} 13. Nxe7 {[%clk 0:02:32]}  Nxe7 {[%clk 0:03:03]} 14. Qxd6 {[%clk 0:02:30]}  Ng6 {[%clk 0:03:03]} 15. Nxe5 {[%clk 0:02:26]}  Nxe5 {[%clk 0:02:41]} 16. Qxe5+ {[%clk 0:02:27]}  Kf8 {[%clk 0:02:42]} 17. Bb2 {[%clk 0:02:25]}  f6 {[%clk 0:02:40]} 18. Qd6+ {[%clk 0:02:24]}  Kf7 {[%clk 0:02:39]} 19. e5 {[%clk 0:02:22]}  Qc6 {[%clk 0:02:32]} 20. e6+ {[%clk 0:02:18]}  Bxe6 {[%clk 0:02:27]} 21. Qxc6 {[%clk 0:02:18]} 1-0


[Site "https://www.chess.com"]

[Event "Titled Tuesday Blitz May 17 Early 2022"]
[White "Wagh Suyog"]
[Black "Sokolovsky, Yahli"]
[WhiteFideId "25071688"]
[BlackFideId "2820242"]
[WhiteElo "2181"]
[BlackElo "1770"]
[Result "1-0"]
[Round "11"]
[TimeControl "180+1"]
[Date "2022.05.17"]
[WhiteClock "0:00:44"]
[BlackClock "0:00:03"]

1. e4 {[%clk 0:03:00]}  g6 {[%clk 0:02:58]} 2. d4 {[%clk 0:03:00]}  Bg7 {[%clk 0:02:59]} 3. Nc3 {[%clk 0:03:01]}  d6 {[%clk 0:03:00]} 4. f4 {[%clk 0:03:01]}  a6 {[%clk 0:02:51]} 5. Nf3 {[%clk 0:03:01]}  b5 {[%clk 0:02:52]} 6. Bd3 {[%clk 0:03:02]}  c5 {[%clk 0:02:47]} 7. dxc5 {[%clk 0:02:57]}  dxc5 {[%clk 0:02:48]} 8. e5 {[%clk 0:02:58]}  Bb7 {[%clk 0:02:26]} 9. Qe2 {[%clk 0:02:55]}  Nc6 {[%clk 0:02:16]} 10. Be4 {[%clk 0:02:51]}  e6 {[%clk 0:02:06]} 11. Be3 {[%clk 0:02:49]}  Qa5 {[%clk 0:01:49]} 12. O-O {[%clk 0:02:40]}  b4 {[%clk 0:01:43]} 13. Nd1 {[%clk 0:02:33]}  Rc8 {[%clk 0:01:35]} 14. Nf2 {[%clk 0:02:32]}  Nge7 {[%clk 0:01:34]} 15. Ng4 {[%clk 0:02:25]}  Nf5 {[%clk 0:01:28]} 16. Rad1 {[%clk 0:02:20]}  O-O {[%clk 0:01:04]} 17. Nf6+ {[%clk 0:02:19]}  Bxf6 {[%clk 0:01:01]} 18. exf6 {[%clk 0:02:20]}  Rfd8 {[%clk 0:00:59]} 19. Ne5 {[%clk 0:02:16]}  Ncd4 {[%clk 0:00:40]} 20. Bxd4 {[%clk 0:02:14]}  Nxd4 {[%clk 0:00:41]} 21. Rxd4 {[%clk 0:02:14]}  cxd4 {[%clk 0:00:37]} 22. Bxb7 {[%clk 0:02:14]}  d3 {[%clk 0:00:27]} 23. Qf2 {[%clk 0:02:14]}  Rxc2 {[%clk 0:00:26]} 24. Qe3 {[%clk 0:01:58]}  d2 {[%clk 0:00:17]} 25. Bf3 {[%clk 0:01:57]}  Qc5 {[%clk 0:00:11]} 26. Qxc5 {[%clk 0:01:52]}  Rxc5 {[%clk 0:00:12]} 27. Kf2 {[%clk 0:01:43]}  Rc2 {[%clk 0:00:11]} 28. Rd1 {[%clk 0:01:41]}  Rxb2 {[%clk 0:00:11]} 29. Ke3 {[%clk 0:01:41]}  Rxa2 {[%clk 0:00:12]} 30. Nc6 {[%clk 0:01:39]}  Rd6 {[%clk 0:00:08]} 31. Nxb4 {[%clk 0:01:39]}  Ra3+ {[%clk 0:00:05]} 32. Ke2 {[%clk 0:01:39]}  Rb3 {[%clk 0:00:05]} 33. Nc2 {[%clk 0:01:35]}  Rb2 {[%clk 0:00:05]} 34. Rxd2 {[%clk 0:01:29]}  Rxd2+ {[%clk 0:00:04]} 35. Kxd2 {[%clk 0:01:30]}  a5 {[%clk 0:00:05]} 36. Kc3 {[%clk 0:01:30]}  Rb1 {[%clk 0:00:05]} 37. Bc6 {[%clk 0:01:28]}  Rf1 {[%clk 0:00:04]} 38. g3 {[%clk 0:01:26]}  Rf2 {[%clk 0:00:05]} 39. h4 {[%clk 0:01:02]}  h5 {[%clk 0:00:06]} 40. Nd4 {[%clk 0:00:58]}  Rh2 {[%clk 0:00:05]} 41. Kd3 {[%clk 0:00:54]}  Rh3 {[%clk 0:00:05]} 42. Ne2 {[%clk 0:00:54]}  Rh2 {[%clk 0:00:04]} 43. Ke3 {[%clk 0:00:54]}  Kf8 {[%clk 0:00:03]} 44. Ba4 {[%clk 0:00:52]}  Rh1 {[%clk 0:00:02]} 45. Kd4 {[%clk 0:00:50]}  Ra1 {[%clk 0:00:03]} 46. Nc3 {[%clk 0:00:47]}  Rg1 {[%clk 0:00:03]} 47. Ne4 {[%clk 0:00:47]}  Rd1+ {[%clk 0:00:03]} 48. Bxd1 {[%clk 0:00:44]} 1-0


[Site "https://www.chess.com"]

[Event "Titled Tuesday Blitz May 17 Early 2022"]
[White "Yang, Kaiqi"]
[Black "Gabrielian, Artur"]
[WhiteFideId "8604398"]
[BlackFideId "4131002"]
[WhiteElo "2373"]
[BlackElo "2440"]
[Result "0-1"]
[Round "11"]
[TimeControl "180+1"]
[Date "2022.05.17"]
[WhiteClock "0:00:01"]
[BlackClock "0:00:10"]

1. d4 {[%clk 0:03:00]}  Nf6 {[%clk 0:02:59]} 2. c4 {[%clk 0:03:00]}  c5 {[%clk 0:02:57]} 3. d5 {[%clk 0:03:00]}  e6 {[%clk 0:02:57]} 4. Nc3 {[%clk 0:03:00]}  exd5 {[%clk 0:02:58]} 5. cxd5 {[%clk 0:03:01]}  d6 {[%clk 0:02:59]} 6. e4 {[%clk 0:03:01]}  g6 {[%clk 0:02:59]} 7. f4 {[%clk 0:03:02]}  Bg7 {[%clk 0:02:59]} 8. Bb5+ {[%clk 0:03:02]}  Nfd7 {[%clk 0:03:00]} 9. Nf3 {[%clk 0:03:02]}  a6 {[%clk 0:02:57]} 10. Be2 {[%clk 0:03:03]}  b5 {[%clk 0:02:54]} 11. O-O {[%clk 0:03:00]}  O-O {[%clk 0:02:53]} 12. Kh1 {[%clk 0:02:59]}  Re8 {[%clk 0:02:52]} 13. f5 {[%clk 0:02:58]}  b4 {[%clk 0:02:51]} 14. Na4 {[%clk 0:02:38]}  Nf6 {[%clk 0:02:49]} 15. Bg5 {[%clk 0:02:34]}  Nbd7 {[%clk 0:02:48]} 16. Bd3 {[%clk 0:02:12]}  Qc7 {[%clk 0:02:19]} 17. Rc1 {[%clk 0:01:54]}  Nxe4 {[%clk 0:02:14]} 18. Bxe4 {[%clk 0:01:54]}  Rxe4 {[%clk 0:02:14]} 19. Re1 {[%clk 0:01:39]}  gxf5 {[%clk 0:02:09]} 20. Nh4 {[%clk 0:01:33]}  Ne5 {[%clk 0:02:06]} 21. Qh5 {[%clk 0:01:23]}  Bd7 {[%clk 0:01:23]} 22. b3 {[%clk 0:01:21]}  Nd3 {[%clk 0:01:14]} 23. Rxe4 {[%clk 0:01:16]}  fxe4 {[%clk 0:01:14]} 24. Rf1 {[%clk 0:01:16]}  Bxa4 {[%clk 0:01:10]} 25. bxa4 {[%clk 0:01:06]}  f6 {[%clk 0:01:06]} 26. Be3 {[%clk 0:00:51]}  Qf7 {[%clk 0:01:00]} 27. Qg4 {[%clk 0:00:52]}  Re8 {[%clk 0:00:59]} 28. Nf5 {[%clk 0:00:52]}  Qg6 {[%clk 0:00:54]} 29. Qh4 {[%clk 0:00:38]}  Re5 {[%clk 0:00:48]} 30. g4 {[%clk 0:00:29]}  c4 {[%clk 0:00:41]} 31. Bd4 {[%clk 0:00:23]}  Re8 {[%clk 0:00:39]} 32. Nxd6 {[%clk 0:00:22]}  Rf8 {[%clk 0:00:34]} 33. Nf5 {[%clk 0:00:21]}  Rf7 {[%clk 0:00:27]} 34. d6 {[%clk 0:00:20]}  c3 {[%clk 0:00:22]} 35. Ne7+ {[%clk 0:00:15]}  Rxe7 {[%clk 0:00:22]} 36. dxe7 {[%clk 0:00:16]}  c2 {[%clk 0:00:22]} 37. g5 {[%clk 0:00:03]}  f5 {[%clk 0:00:15]} 38. Qg3 {[%clk 0:00:02]}  f4 {[%clk 0:00:14]} 39. Qg4 {[%clk 0:00:01]}  Qc6 {[%clk 0:00:10]} 0-1


[Site "https://www.chess.com"]